Workbook

Sheet Лист1
A1: Школа | C1: МБОУ средняя общеобразовательная школа №3 имени Тази Гиззата г.Агрыз | F1: Утвердил: | G1: должность
A2: Типовое примерное меню приготавливаемых блюд | G2: фамилия
A3: Возрастная категория | E3: 7-11 лет | G3: дата | H3: 9 | I3: 1 | J3: 2026
H4: день | I4: месяц | J4: год
A5: Неделя | B5: День недели | C5: Прием пищи | D5: Раздел меню | E5: Блюда | F5: Вес блюда, г | G5: Белки | H5: Жиры | I5: Углеводы | J5: Калорийность | K5: № рецептуры | L5: Цена
A6: 1 | B6: 1 | C6: Завтрак | D6: гор.блюдо | E6: Котлеты"Татарские" с соусом томатным , каша пшенная вязкой с маслом | F6: 250 | G6: 16.950 | H6: 14.570 | I6: 40.800 | J6: 362.000 | K6: №26,173 | L6: 57.77
D7: гор.напиток | E7: Чай полусладкийс молоком | F7: 200 | G7: 1.520 | H7: 1.350 | I7: 15.900 | J7: 81.000 | K7: №13 | L7: 7.23
D8: хлеб | E8: хлеб пшеничный | F8: 30 | G8: 2.280 | H8: 0.240 | I8: 14.760 | J8: 71.000 | L8: 2.61
D9: хлеб | E9: хлеб ржаной | F9: 20 | G9: 1.000 | H9: 0.200 | I9: 9.000 | J9: 44.000 | L9: 1.70
D10: салат | E10: слат из моркови с сахаром | F10: 60 | G10: 0.520 | H10: 2.130 | I10: 4.450 | J10: 50.000 | K10: №62 | L10: 7.37
D11: итого | F11: =SUM(F6:F10) -> 560 | G11: =SUM(G6:G10) -> 22.27 | H11: =SUM(H6:H10) -> 18.49 | I11: =SUM(I6:I10) -> 84.91 | J11: =SUM(J6:J10) -> 608 | L11: =SUM(L6:L10) -> 76.68
A12: =A6 -> 1 | B12: =B6 -> 1 | C12: Завтрак 2 | D12: фрукты
D15: итого | F15: =SUM(F12:F14) -> 0 | G15: =SUM(G12:G14) -> 0 | H15: 0 | I15: 0 | J15: 0 | L15: =SUM(L12:L20) -> 0
A16: =A6 -> 1 | B16: =B6 -> 1 | C16: Обед | D16: закуска
D17: 1 блюдо
D18: 2 блюдо
D19: гарнир
D20: напиток
D21: хлеб бел.
D22: хлеб черн.
D25: итого | F25: =SUM(F16:F24) -> 0 | G25: =SUM(G16:G24) -> 0 | H25: 0 | I25: 0 | J25: 0 | L25: =SUM(L22:L30) -> 0
A26: =A6 -> 1 | B26: =B6 -> 1 | C26: Полдник | D26: булочное
D27: напиток
D30: итого | F30: =SUM(F26:F29) -> 0 | G30: =SUM(G26:G29) -> 0 | H30: 0 | I30: 0 | J30: 0 | L30: =SUM(L23:L29) -> 0
A31: =A6 -> 1 | B31: =B6 -> 1 | C31: Ужин | D31: гор.блюдо
D32: гарнир
D33: напиток
D34: хлеб
D37: итого | F37: =SUM(F31:F36) -> 0 | G37: =SUM(G31:G36) -> 0 | H37: 0 | I37: 0 | J37: 0 | L37: =SUM(L31:L39) -> 0
A38: =A6 -> 1 | B38: =B6 -> 1 | C38: Ужин 2 | D38: кисломол.
D39: булочное
D40: напиток
D41: фрукты
D44: итого | F44: =SUM(F38:F43) -> 0 | G44: =SUM(G38:G43) -> 0 | H44: 0 | I44: 0 | J44: 0 | L44: =SUM(L38:L46) -> 0
A45: =A6 -> 1 | B45: =B6 -> 1 | C45: Итого за день: | F45: =F11+F15+F25+F30+F37+F44 -> 560 | G45: =G11+G15+G25+G30+G37+G44 -> 22.27 | H45: 18.49 | I45: 84.91 | J45: 608 | L45: =L11+L15+L25+L30+L37+L44 -> 0
A46: 1 | B46: 2 | C46: Завтрак | D46: гор.блюдо | E46: Рагу из птицы | F46: 200 | G46: 15.100 | H46: 13.580 | I46: 17.400 | J46: 252.600 | K46: №289/2017 ДеЛи | L46: 52.80
D47: гор.напиток | E47: Чай полусладкий с лимоном | F47: 200 | G47: 0.080 | H47: 0.010 | I47: 15.190 | J47: 62.000 | K47: №377 | L47: 3.60
D48: хлеб | E48: хлеб пшеничный | F48: 30 | G48: 2.280 | H48: 0.240 | I48: 14.760 | J48: 71.000 | K48: №1 | L48: 2.61
D49: хлеб | E49: хлеб ржаной | F49: 20 | G49: 1.000 | H49: 0.200 | I49: 9.000 | J49: 44.000 | K49: №1 | L49: 1.70
D50: салат | E50: Салат из свеклы отварной | F50: 60 | G50: 0.850 | H50: 3.650 | I50: 11.400 | J50: 56.000 | K50: №52 | L50: 7.57
D51: итого | F51: =SUM(F46:F50) -> 510 | G51: =SUM(G46:G50) -> 19.31 | H51: =SUM(H46:H50) -> 17.68 | I51: =SUM(I46:I50) -> 67.75 | J51: =SUM(J46:J50) -> 485.6 | L51: =SUM(L46:L50) -> 68.28
A52: =A46 -> 1 | B52: =B46 -> 2 | C52: Завтрак 2 | D52: фрукты
D55: итого | F55: =SUM(F52:F54) -> 0 | G55: =SUM(G52:G54) -> 0 | H55: =SUM(H52:H54) -> 0 | I55: =SUM(I52:I54) -> 0 | J55: =SUM(J52:J54) -> 0 | L55: =SUM(L52:L60) -> 0
A56: =A46 -> 1 | B56: =B46 -> 2 | C56: Обед | D56: закуска
D57: 1 блюдо
D58: 2 блюдо
D59: гарнир
D60: напиток
D61: хлеб бел.
D62: хлеб черн.
D65: итого | F65: =SUM(F56:F64) -> 0 | G65: =SUM(G56:G64) -> 0 | H65: =SUM(H56:H64) -> 0 | I65: =SUM(I56:I64) -> 0 | J65: =SUM(J56:J64) -> 0 | L65: =SUM(L62:L70) -> 0
A66: =A46 -> 1 | B66: =B46 -> 2 | C66: Полдник | D66: булочное
D67: напиток
D70: итого | F70: =SUM(F66:F69) -> 0 | G70: =SUM(G66:G69) -> 0 | H70: =SUM(H66:H69) -> 0 | I70: =SUM(I66:I69) -> 0 | J70: =SUM(J66:J69) -> 0 | L70: =SUM(L63:L69) -> 0
A71: =A46 -> 1 | B71: =B46 -> 2 | C71: Ужин | D71: гор.блюдо
D72: гарнир
D73: напиток
D74: хлеб
D77: итого | F77: =SUM(F71:F76) -> 0 | G77: =SUM(G71:G76) -> 0 | H77: =SUM(H71:H76) -> 0 | I77: =SUM(I71:I76) -> 0 | J77: =SUM(J71:J76) -> 0 | L77: =SUM(L71:L79) -> 0
A78: =A46 -> 1 | B78: =B46 -> 2 | C78: Ужин 2 | D78: кисломол.
D79: булочное
D80: напиток
D81: фрукты
D84: итого | F84: =SUM(F78:F83) -> 0 | G84: =SUM(G78:G83) -> 0 | H84: =SUM(H78:H83) -> 0 | I84: =SUM(I78:I83) -> 0 | J84: =SUM(J78:J83) -> 0 | L84: =SUM(L78:L86) -> 0
A85: =A46 -> 1 | B85: =B46 -> 2 | C85: Итого за день: | F85: =F51+F55+F65+F70+F77+F84 -> 510 | G85: =G51+G55+G65+G70+G77+G84 -> 19.31 | H85: =H51+H55+H65+H70+H77+H84 -> 17.68 | I85: =I51+I55+I65+I70+I77+I84 -> 67.75 | J85: =J51+J55+J65+J70+J77+J84 -> 485.6 | L85: =L51+L55+L65+L70+L77+L84 -> 0
A86: 1 | B86: 3 | C86: Завтрак | D86: гор.блюдо | E86: Макаронные изделия отварные,гуляшиз говядины | F86: 250 | G86: 19.650 | H86: 21.260 | I86: 31.390 | J86: 408.000 | K86: №290,203 | L86: 56.95
D87: гор.напиток | E87: Напиток из свежих яблок | F87: 200 | G87: 0.200 | H87: 0.200 | I87: 18.400 | J87: 76.300 | K87: №203 | L87: 7.25
D88: хлеб | E88: хлеб пшеничный | F88: 30 | G88: 2.280 | H88: 0.240 | I88: 14.760 | J88: 71.000 | K88: №1 | L88: 2.61
D89: хлеб | E89: хлеб ржанной | F89: 20 | G89: 1.000 | H89: 0.200 | I89: 9.000 | J89: 44.000 | K89: №1 | L89: 1.70
D90: салат | E90: салат из белокачанной капусты | F90: 60 | G90: 0.780 | H90: 1.940 | I90: 3.870 | J90: 36.000 | K90: №45 | L90: 6.94
D91: итого | F91: =SUM(F86:F90) -> 560 | G91: =SUM(G86:G90) -> 23.91 | H91: =SUM(H86:H90) -> 23.84 | I91: =SUM(I86:I90) -> 77.42 | J91: =SUM(J86:J90) -> 635.3 | L91: =SUM(L86:L90) -> 75.45
A92: =A86 -> 1 | B92: =B86 -> 3 | C92: Завтрак 2 | D92: фрукты
D95: итого | F95: =SUM(F92:F94) -> 0 | G95: =SUM(G92:G94) -> 0 | H95: =SUM(H92:H94) -> 0 | I95: =SUM(I92:I94) -> 0 | J95: =SUM(J92:J94) -> 0 | L95: =SUM(L92:L100) -> 0
A96: =A86 -> 1 | B96: =B86 -> 3 | C96: Обед | D96: закуска
D97: 1 блюдо
D98: 2 блюдо
D99: гарнир
D100: напиток
D101: хлеб бел.
D102: хлеб черн.
D105: итого | F105: =SUM(F96:F104) -> 0 | G105: =SUM(G96:G104) -> 0 | H105: =SUM(H96:H104) -> 0 | I105: =SUM(I96:I104) -> 0 | J105: =SUM(J96:J104) -> 0 | L105: =SUM(L102:L110) -> 0
A106: =A86 -> 1 | B106: =B86 -> 3 | C106: Полдник | D106: булочное
D107: напиток
D110: итого | F110: =SUM(F106:F109) -> 0 | G110: =SUM(G106:G109) -> 0 | H110: =SUM(H106:H109) -> 0 | I110: =SUM(I106:I109) -> 0 | J110: =SUM(J106:J109) -> 0 | L110: =SUM(L103:L109) -> 0
A111: =A86 -> 1 | B111: =B86 -> 3 | C111: Ужин | D111: гор.блюдо
D112: гарнир
D113: напиток
D114: хлеб
D117: итого | F117: =SUM(F111:F116) -> 0 | G117: =SUM(G111:G116) -> 0 | H117: =SUM(H111:H116) -> 0 | I117: =SUM(I111:I116) -> 0 | J117: =SUM(J111:J116) -> 0 | L117: =SUM(L111:L119) -> 0
A118: =A86 -> 1 | B118: =B86 -> 3 | C118: Ужин 2 | D118: кисломол.
D119: булочное
D120: напиток
D121: фрукты
D124: итого | F124: =SUM(F118:F123) -> 0 | G124: =SUM(G118:G123) -> 0 | H124: =SUM(H118:H123) -> 0 | I124: =SUM(I118:I123) -> 0 | J124: =SUM(J118:J123) -> 0 | L124: =SUM(L118:L126) -> 0
A125: =A86 -> 1 | B125: =B86 -> 3 | C125: Итого за день: | F125: =F91+F95+F105+F110+F117+F124 -> 560 | G125: =G91+G95+G105+G110+G117+G124 -> 23.91 | H125: =H91+H95+H105+H110+H117+H124 -> 23.84 | I125: =I91+I95+I105+I110+I117+I124 -> 77.42 | J125: =J91+J95+J105+J110+J117+J124 -> 635.3 | L125: =L91+L95+L105+L110+L117+L124 -> 0
A126: 1 | B126: 4 | C126: Завтрак | D126: гор.блюдо | E126: биточки"рябушка" с припущенными овощами(мексиканская смесь,картофельное пюре | F126: 245 | G126: 17.190 | H126: 19.480 | I126: 32.200 | J126: 369.000 | K126: №22,312 | L126: 74.85
D127: гор.напиток | E127: чай полусладкий | F127: 200 | G127: 0.200 | H127: 0.000 | I127: 13.700 | J127: 56.000 | K127: №1 ТТК | L127: 1.23
D128: салат | E128: Салат "зайка" | F128: 60 | G128: 1.200 | H128: 4.830 | I128: 4.240 | J128: 65.200 | K128: №473 | L128: 7.04
D129: хлеб | E129: хлеб пшеничный | F129: 30 | G129: 2.280 | H129: 0.240 | I129: 14.760 | J129: 71.000 | K129: №1 | L129: 2.61
D130: хлеб | E130: хлеб ржанной | F130: 20 | G130: 1.000 | H130: 0.200 | I130: 9.000 | J130: 44.000 | K130: №1 | L130: 1.70
D131: итого | F131: =SUM(F126:F130) -> 555 | G131: =SUM(G126:G130) -> 21.87 | H131: =SUM(H126:H130) -> 24.75 | I131: =SUM(I126:I130) -> 73.9 | J131: =SUM(J126:J130) -> 605.2 | L131: =SUM(L126:L130) -> 87.43
A132: =A126 -> 1 | B132: =B126 -> 4 | C132: Завтрак 2 | D132: фрукты
D135: итого | F135: =SUM(F132:F134) -> 0 | G135: =SUM(G132:G134) -> 0 | H135: =SUM(H132:H134) -> 0 | I135: =SUM(I132:I134) -> 0 | J135: =SUM(J132:J134) -> 0 | L135: =SUM(L132:L140) -> 0
A136: =A126 -> 1 | B136: =B126 -> 4 | C136: Обед | D136: закуска
D137: 1 блюдо
D138: 2 блюдо
D139: гарнир
D140: напиток
D141: хлеб бел.
D142: хлеб черн.
D145: итого | F145: =SUM(F136:F144) -> 0 | G145: =SUM(G136:G144) -> 0 | H145: =SUM(H136:H144) -> 0 | I145: =SUM(I136:I144) -> 0 | J145: =SUM(J136:J144) -> 0 | L145: =SUM(L142:L150) -> 0
A146: =A126 -> 1 | B146: =B126 -> 4 | C146: Полдник | D146: булочное
D147: напиток
D150: итого | F150: =SUM(F146:F149) -> 0 | G150: =SUM(G146:G149) -> 0 | H150: =SUM(H146:H149) -> 0 | I150: =SUM(I146:I149) -> 0 | J150: =SUM(J146:J149) -> 0 | L150: =SUM(L143:L149) -> 0
A151: =A126 -> 1 | B151: =B126 -> 4 | C151: Ужин | D151: гор.блюдо
D152: гарнир
D153: напиток
D154: хлеб
D157: итого | F157: =SUM(F151:F156) -> 0 | G157: =SUM(G151:G156) -> 0 | H157: =SUM(H151:H156) -> 0 | I157: =SUM(I151:I156) -> 0 | J157: =SUM(J151:J156) -> 0 | L157: =SUM(L151:L159) -> 0
A158: =A126 -> 1 | B158: =B126 -> 4 | C158: Ужин 2 | D158: кисломол.
D159: булочное
D160: напиток
D161: фрукты
D164: итого | F164: =SUM(F158:F163) -> 0 | G164: =SUM(G158:G163) -> 0 | H164: =SUM(H158:H163) -> 0 | I164: =SUM(I158:I163) -> 0 | J164: =SUM(J158:J163) -> 0 | L164: =SUM(L158:L166) -> 0
A165: =A126 -> 1 | B165: =B126 -> 4 | C165: Итого за день: | F165: =F131+F135+F145+F150+F157+F164 -> 555 | G165: =G131+G135+G145+G150+G157+G164 -> 21.87 | H165: =H131+H135+H145+H150+H157+H164 -> 24.75 | I165: =I131+I135+I145+I150+I157+I164 -> 73.9 | J165: =J131+J135+J145+J150+J157+J164 -> 605.2 | L165: =L131+L135+L145+L150+L157+L164 -> 0
A166: 1 | B166: 5 | C166: Завтрак | D166: гор.блюдо | E166: Жаркое по домашнему с мясом птицы | F166: 200 | G166: 18.520 | H166: 20.700 | I166: 18.950 | J166: 337.140 | K166: №259 | L166: 53.93
D167: гор.напиток | E167: чай полусладкий с молоком | F167: 200 | G167: 1.520 | H167: 1.350 | I167: 15.900 | J167: 81.000 | K167: №13 | L167: 7.23
D168: хлеб | E168: хлеб пшеничный | F168: 30 | G168: 2.280 | H168: 0.240 | I168: 14.760 | J168: 71.000 | K168: №1 | L168: 2.61
D169: хлеб | E169: хлеб ржаной | F169: 20 | G169: 1.000 | H169: 0.200 | I169: 9.000 | J169: 44.000 | K169: №1 | L169: 1.70
D170: фрукты | E170: яблоки | F170: 100 | G170: 0.400 | H170: 0.400 | I170: 9.800 | J170: 47.000 | K170: №338 | L170: 18.00
D171: итого | F171: =SUM(F166:F170) -> 550 | G171: =SUM(G166:G170) -> 23.720 | H171: =SUM(H166:H170) -> 22.89 | I171: =SUM(I166:I170) -> 68.41 | J171: =SUM(J166:J170) -> 580.14 | L171: =SUM(L166:L170) -> 83.47
A172: =A166 -> 1 | B172: =B166 -> 5 | C172: Завтрак 2 | D172: фрукты
D175: итого | F175: =SUM(F172:F174) -> 0 | G175: =SUM(G172:G174) -> 0 | H175: =SUM(H172:H174) -> 0 | I175: =SUM(I172:I174) -> 0 | J175: =SUM(J172:J174) -> 0 | L175: =SUM(L172:L180) -> 0
A176: =A166 -> 1 | B176: =B166 -> 5 | C176: Обед | D176: закуска
D177: 1 блюдо
D178: 2 блюдо
D179: гарнир
D180: напиток
D181: хлеб бел.
D182: хлеб черн.
D185: итого | F185: =SUM(F176:F184) -> 0 | G185: =SUM(G176:G184) -> 0 | H185: =SUM(H176:H184) -> 0 | I185: =SUM(I176:I184) -> 0 | J185: =SUM(J176:J184) -> 0 | L185: =SUM(L182:L190) -> 0
A186: =A166 -> 1 | B186: =B166 -> 5 | C186: Полдник | D186: булочное
D187: напиток
D190: итого | F190: =SUM(F186:F189) -> 0 | G190: =SUM(G186:G189) -> 0 | H190: =SUM(H186:H189) -> 0 | I190: =SUM(I186:I189) -> 0 | J190: =SUM(J186:J189) -> 0 | L190: =SUM(L183:L189) -> 0
A191: =A166 -> 1 | B191: =B166 -> 5 | C191: Ужин | D191: гор.блюдо
D192: гарнир
D193: напиток
D194: хлеб
D197: итого | F197: =SUM(F191:F196) -> 0 | G197: =SUM(G191:G196) -> 0 | H197: =SUM(H191:H196) -> 0 | I197: =SUM(I191:I196) -> 0 | J197: =SUM(J191:J196) -> 0 | L197: =SUM(L191:L199) -> 0
A198: =A166 -> 1 | B198: =B166 -> 5 | C198: Ужин 2 | D198: кисломол.
D199: булочное
D200: напиток
D201: фрукты
D204: итого | F204: =SUM(F198:F203) -> 0 | G204: =SUM(G198:G203) -> 0 | H204: =SUM(H198:H203) -> 0 | I204: =SUM(I198:I203) -> 0 | J204: =SUM(J198:J203) -> 0 | L204: =SUM(L198:L206) -> 0
A205: =A166 -> 1 | B205: =B166 -> 5 | C205: Итого за день: | F205: =F171+F175+F185+F190+F197+F204 -> 550 | G205: =G171+G175+G185+G190+G197+G204 -> 23.72 | H205: =H171+H175+H185+H190+H197+H204 -> 22.89 | I205: =I171+I175+I185+I190+I197+I204 -> 68.41 | J205: =J171+J175+J185+J190+J197+J204 -> 580.14 | L205: =L171+L175+L185+L190+L197+L204 -> 0
A206: 1 | B206: 6 | C206: Завтрак | D206: гор.блюдо | E206: пельмени мясные отварныее | F206: 185 | G206: 19.000 | H206: 11.200 | I206: 32.400 | J206: 306.900 | K206: №47 | L206: 71.26
D207: гор.напиток | E207: чай слимоном полусладкий | F207: 200 | G207: 0.080 | H207: 0.010 | I207: 15.190 | J207: 62.000 | K207: №377 | L207: 3.60
D208: хлеб | E208: хлеб пшеничный | F208: 30 | G208: 2.280 | H208: 0.240 | I208: 14.760 | J208: 71.000 | K208: №1 | L208: 2.61
D209: хлеб | E209: хлеб ржанной | F209: 20 | G209: 1.000 | H209: 0.200 | I209: 9.000 | J209: 44.000 | K209: №1 | L209: 1.70
D210: Салат | E210: Салатиз квашенной капусты | F210: 60 | G210: 1.030 | H210: 3.000 | I210: 5.100 | J210: 51.420 | K210: №47 | L210: 9.42
D211: итого | F211: =SUM(F206:F210) -> 495 | G211: =SUM(G206:G210) -> 23.39 | H211: =SUM(H206:H210) -> 14.65 | I211: =SUM(I206:I210) -> 76.45 | J211: =SUM(J206:J210) -> 535.32 | L211: =SUM(L206:L210) -> 88.59
A212: =A206 -> 1 | B212: =B206 -> 6 | C212: Завтрак 2 | D212: фрукты
D215: итого | F215: =SUM(F212:F214) -> 0 | G215: =SUM(G212:G214) -> 0 | H215: =SUM(H212:H214) -> 0 | I215: =SUM(I212:I214) -> 0 | J215: =SUM(J212:J214) -> 0 | L215: =SUM(L212:L220) -> 0
A216: =A206 -> 1 | B216: =B206 -> 6 | C216: Обед | D216: закуска
D217: 1 блюдо
D218: 2 блюдо
D219: гарнир
D220: напиток
D221: хлеб бел.
D222: хлеб черн.
D225: итого | F225: =SUM(F216:F224) -> 0 | G225: =SUM(G216:G224) -> 0 | H225: =SUM(H216:H224) -> 0 | I225: =SUM(I216:I224) -> 0 | J225: =SUM(J216:J224) -> 0 | L225: =SUM(L222:L230) -> 0
A226: =A206 -> 1 | B226: =B206 -> 6 | C226: Полдник | D226: булочное
D227: напиток
D230: итого | F230: =SUM(F226:F229) -> 0 | G230: =SUM(G226:G229) -> 0 | H230: =SUM(H226:H229) -> 0 | I230: =SUM(I226:I229) -> 0 | J230: =SUM(J226:J229) -> 0 | L230: =SUM(L223:L229) -> 0
A231: =A206 -> 1 | B231: =B206 -> 6 | C231: Ужин | D231: гор.блюдо
D232: гарнир
D233: напиток
D234: хлеб
D237: итого | F237: =SUM(F231:F236) -> 0 | G237: =SUM(G231:G236) -> 0 | H237: =SUM(H231:H236) -> 0 | I237: =SUM(I231:I236) -> 0 | J237: =SUM(J231:J236) -> 0 | L237: =SUM(L231:L239) -> 0
A238: =A206 -> 1 | B238: =B206 -> 6 | C238: Ужин 2 | D238: кисломол.
D239: булочное
D240: напиток
D241: фрукты
D244: итого | F244: =SUM(F238:F243) -> 0 | G244: =SUM(G238:G243) -> 0 | H244: =SUM(H238:H243) -> 0 | I244: =SUM(I238:I243) -> 0 | J244: =SUM(J238:J243) -> 0 | L244: =SUM(L238:L245) -> 0
A245: =A206 -> 1 | B245: =B206 -> 6 | C245: Итого за день: | F245: =F211+F215+F225+F230+F237+F244 -> 495 | G245: =G211+G215+G225+G230+G237+G244 -> 23.39 | H245: =H211+H215+H225+H230+H237+H244 -> 14.65 | I245: =I211+I215+I225+I230+I237+I244 -> 76.45 | J245: =J211+J215+J225+J230+J237+J244 -> 535.32 | L245: =L211+L215+L225+L230+L237+L244 -> 0
A246: 2 | B246: 1 | C246: Завтрак | D246: гор.блюдо | E246: Фрикадельки"Особые"с соусом томатным,каша гречневая вязкая | F246: 250 | G246: 19.200 | H246: 28.060 | I246: 43.930 | J246: 431.210 | K246: ТТК9,№173 | L246: 39.71
D247: гор.напиток | E247: чай полусладкий | F247: 200 | G247: 0.200 | H247: 0.000 | I247: 13.700 | J247: 56.000 | K247: ТТК-1 | L247: 1.23
D248: хлеб | E248: хлеб ржаной | F248: 20 | G248: 1.000 | H248: 0.200 | I248: 9.000 | J248: 44.000 | K248: №1 | L248: 1.70
D249: хлеб | E249: хлебпшеничный | F249: 30 | G249: 2.280 | H249: 0.240 | I249: 14.760 | J249: 71.000 | K249: №1 | L249: 2.61
D250: салат | E250: салат из свеклы отварной | F250: 60 | G250: 0.850 | H250: 3.650 | I250: 11.600 | J250: 56.000 | K250: №52 | L250: 7.57
D251: итого | F251: =SUM(F246:F250) -> 560 | G251: =SUM(G246:G250) -> 23.53 | H251: =SUM(H246:H250) -> 32.15 | I251: =SUM(I246:I250) -> 92.99 | J251: =SUM(J246:J250) -> 658.21 | L251: =SUM(L246:L250) -> 52.82
A252: =A246 -> 2 | B252: =B246 -> 1 | C252: Завтрак 2 | D252: фрукты
D255: итого | F255: =SUM(F252:F254) -> 0 | G255: =SUM(G252:G254) -> 0 | H255: =SUM(H252:H254) -> 0 | I255: =SUM(I252:I254) -> 0 | J255: =SUM(J252:J254) -> 0 | L255: =SUM(L252:L260) -> 0
A256: =A246 -> 2 | B256: =B246 -> 1 | C256: Обед | D256: закуска
D257: 1 блюдо
D258: 2 блюдо
D259: гарнир
D260: напиток
D261: хлеб бел.
D262: хлеб черн.
... 166 more rows
